Cogmind - Beta 17 *** ADVENTURER MODE // 2026.07.01 @ 19:17:03 Player: POPESNHOES Result: Self-destructed Performance ------------- Evolutions (1) 500 Regions Visited (2) 400 Robots Destroyed (20) 100 Value Destroyed (431) 431 Prototype IDs (0) 0 Alien Tech Used (0) 0 Bonus (0) 0 TOTAL SCORE: 1431 Bonus ------- None Cogmind --------- Core Integrity 364/400 Matter 290/300 Energy 275/275 System Corruption 0% Temperature Cool (0) Movement Walking (190) Ox1 Location -9/Materials Parts ------- > --- POWER (2) -------- Ion Engine Light Ion Engine > --- PROPULSION (3) --- Aluminum Leg Aluminum Leg Aluminum Leg > --- UTILITY (2) ------ High-capacity Storage Unit Melee Analysis Suite > --- WEAPON (2) ------- Particle Cannon Heavy Hammer > --- INVENTORY (20) --- Light Ion Engine Light Ion Engine Aluminum Leg Propulsion Shielding Beam Rifle Light Assault Rifle Mining Laser Hammer Peak State ------------ > --- POWER ------------ Ion Engine Light Ion Engine > --- PROPULSION ------- Aluminum Leg Aluminum Leg Aluminum Leg > --- UTILITY ---------- High-capacity Storage Unit Melee Analysis Suite > --- WEAPON ----------- Particle Cannon Heavy Hammer > --- INVENTORY -------- Light Ion Engine Light Ion Engine Aluminum Leg Aluminum Leg Propulsion Shielding Beam Rifle Light Assault Rifle Mining Laser Hammer [Rating: 14] Favorites ----------- Power Light Ion Engine Engine Light Ion Engine Propulsion Aluminum Leg Leg Aluminum Leg Utility High-capacity Storage Unit Storage High-capacity Storage Unit Processor Visual Processing Unit Protection Propulsion Shielding Weapon Beam Rifle Energy Gun Beam Rifle Energy Cannon Particle Cannon Ballistic Gun Light Assault Rifle Impact Weapon Heavy Hammer Build | -11 -10 -9 ------- Run | Yrd Mat Mat Slots Evolved 2 | . . 2 Power 1 | . . 1 Propulsion 1 | . . 1 Utility . | . . . Weapon . | . . . Parts Attached 21 | 6 10 5 Power 4 | 1 2 1 Engine 4 | 1 2 1 Core . | . . . Reactor . | . . . Propulsion 4 | 2 . 2 Treads . | . . . Leg 4 | 2 . 2 Wheel . | . . . Hover . | . . . Flight . | . . . Utility 7 | 1 5 1 Device . | . . . Storage 3 | 1 2 . Processor 3 | . 2 1 Hackware . | . . . Protection 1 | . 1 . Artifact . | . . . Weapon 6 | 2 3 1 Energy Gun 2 | 1 1 . Energy Cannon 1 | . 1 . Ballistic Gun 2 | 1 1 . Ballistic Cannon . | . . . Launcher . | . . . Special Weapon . | . . . Impact Weapon 1 | . . 1 Slashing Weapon . | . . . Piercing Weapon . | . . . Special Melee Weapon . | . . . Unidentified Prototypes . | . . . Parts Lost . | . . . Power . | . . . Propulsion . | . . . Utility . | . . . Weapon . | . . . Highest Loss Streak . | . . . To Critical Strikes . | . . . Average Backups 5 | 1 5 8 Power 2 | . 2 2 Propulsion . | . . 1 Utility . | . . 1 Weapon 1 | . 1 3 Tool/Special . | . . . Unused Backups 3 | . . 3 Power . | . . . Propulsion 1 | . . 1 Utility . | . . . Weapon 2 | . . 2 Tool/Special . | . . . Average Slot Usage (%) 97 | . 99 86 Engine 14 | . 14 14 Leg 27 | . 28 27 Storage 9 | . 8 11 Processor 10 | . 10 11 Protection 7 | . 8 . Energy Gun 12 | . 14 6 Energy Cannon 8 | . 7 11 Ballistic Gun 5 | . 6 . Peak Build Rating 14 | 6 10 14 Average Rating 8 | 4 8 11 On Entrance 5 | . 6 10 Avg Prop Armor Cover (%) . | . . . Naked Turns . | . . . Heaviest Build 55 | 11 51 55 Greatest Support 30 | 20 20 30 Greatest Overweight (x) 2 | 1 2 2 Average Overweight (x) . | . . 1 Largest Inventory Capacity 20 | 8 20 20 Average Capacity 13 | 6 13 20 Most Carried 10 | 3 8 10 Average Carried 5 | 1 5 8 Final Capacity 20 | 8 20 20 Final Carried 8 | 2 8 8 Class Distribution -------------------- 100% | Mutant Dominant Class ---------------- Mutant | -10/Materials Mutant | -9/Materials Resources | -11 -10 -9 ----------- Run | Yrd Mat Mat Matter Collected 439 | 248 131 60 Remotely . | . . . Salvage Created 526 | . 303 223 Parts 34 | . 27 7 Haulers Intercepted . | . . . Recyclers Shooed . | . . . Parts Field Recycled . | . . . Retrieved Matter . | . . . Parts Self-Destructed . | . . . Prevented . | . . . Parts Restored . | . . . Kills | -11 -10 -9 ------- Run | Yrd Mat Mat Combat Hostiles Destroyed 16 | . 11 5 Melee 1 | . . 1 Guns 6 | . 6 . Cannons 7 | . 5 2 Classes Destroyed 5 | . 4 1 Builder 1 | . 1 . Watcher 3 | . 2 1 Swarmer 8 | . 8 . Grunt 6 | . 3 3 Duelist 2 | . . 2 Best Kill Streak 3 | . 3 3 Combat Bots Only 3 | . 3 3 Max Kills in Single Turn 2 | . 2 1 Gunslinging . | . . . Exploded . | . . . Melee 1 | . . 1 Uniques/NPCs Destroyed . | . . . Combat | -11 -10 -9 -------- Run | Yrd Mat Mat Hostile Shots Fired 101 | . 60 41 Missed 37 | . 23 14 Hits 64 | . 37 27 Melee 2 | . . 2 Projectile 62 | . 37 25 Critical Strikes 2 | . 1 1 Damage Taken 522 | . 251 271 Core 129 | . 93 36 Absorbed by Shields . | . . . Redirected to Shielding 10 | . 10 . Ignored by Resistances 165 | . 82 83 Core Remaining (%) 81 | 100 62 . Volleys Fired 48 | . 34 14 Largest 2 | . 2 2 Hottest 124 | . 124 124 Shots Fired 90 | . 68 22 Gun 61 | . 53 8 Cannon 29 | . 15 14 Launcher . | . . . Special . | . . . Kinetic 19 | . 19 . Thermal 71 | . 49 22 Explosive . | . . . Electromagnetic . | . . . Robot Hit Streak 16 | . 16 6 Robot Miss Streak 4 | . 4 3 Penetration Max . | . . . Secondary Targets . | . . . Shots Hit Robots 62 | . 42 20 Core Hits 24 | . 19 5 Critical Kills . | . . . Critical Parts Destroyed 1 | . . 1 Critical Strikes 4 | . 1 3 Burn 1 | . 1 . Smash 3 | . . 3 Melee Attacks 5 | . . 5 Impact 5 | . . 5 Slashing . | . . . Piercing . | . . . Sneak Attacks . | . . . Combat Hostiles . | . . . Follow-up Attacks . | . . . Damage Inflicted 1118 | . 650 468 Guns 522 | . 405 117 Cannons 388 | . 245 143 Explosions . | . . . Melee 208 | . . 208 Ramming . | . . . Kinetic 93 | . 93 . Thermal 817 | . 557 260 Explosive . | . . . Electromagnetic . | . . . Impact 208 | . . 208 Slashing . | . . . Piercing . | . . . Highest Corruption . | . . . Average Corruption . | . . . Corruption Purged . | . . . Corruption Blocked . | . . . Overload Shots . | . . . Overflow Damage 60 | . 16 44 Projectiles 16 | . 16 . Explosions . | . . . Melee 44 | . . 44 Knockbacks 2 | . . 2 Impact 2 | . . 2 Kinetic . | . . . Secondary . | . . . Self-Inflicted Damage . | . . . Shots . | . . . Rammed . | . . . Targets Rammed . | . . . Kicked . | . . . Crushed . | . . . Highest Temperature 488 | . 327 488 Average Temperature 128 | . 98 206 Received Heat Transfer 234 | . 96 138 Effects 5 | . 1 4 Shutdowns 1 | . . 1 Energy Bleed 2 | . 1 1 Interference 2 | . . 2 Siege Activations . | . . . Martial Activations . | . . . Shielding Activations . | . . . Robots Disrupted . | . . . Combat Hostiles . | . . . Robots Corrupted 2 | . . 2 Combat Hostiles 2 | . . 2 Parts Fried 2 | . . 2 Impact Corruptions 3 | . . 3 Robots Melted . | . . . Combat Hostiles . | . . . Parts Melted 3 | . 2 1 Heat Transferred 1924 | . 1369 555 Parts Sabotaged . | . . . Parts Stolen . | . . . Parts Stripped . | . . . Power Chain Reactions . | . . . Alert | -11 -10 -9 ------- Run | Yrd Mat Mat Maximum Alert Level . | . . . Low Security (%) 100 | 100 100 100 Level 1 . | . . . Level 2 . | . . . Level 3 . | . . . Level 4 . | . . . Level 5 . | . . . High Security . | . . . Max Security . | . . . Peak Influence 62 | . 62 60 Initial . | . . . Average 14 | . 14 23 Influence Increases 455 | . 327 128 Destroy 0b10 Robot/C 320 | . 220 100 Destroy 0b10 Robot/NC 20 | . 15 5 Destroy Leader 66 | . 44 22 Successful Hack 1 | . 1 . Destroy Structure 3 | . 2 1 Lose Combat Pursuer 45 | . 45 . Influence Decreases 395 | . 327 68 Time Decay 395 | . 327 68 Squads Dispatched 1 | . 1 . Investigation 1 | . 1 . Extermination . | . . . Reinforcement . | . . . Assault . | . . . Garrison . | . . . Intercept . | . . . Searches Triggered . | . . . Construction Impeded . | . . . Haulers Reinforced . | . . . Active Scanning Responses . | . . . Cargo Convoy Interrupts . | . . . Stealth | -11 -10 -9 --------- Run | Yrd Mat Mat Distress Signals 1 | . . 1 Communications Jammed . | . . . Distress Signals . | . . . Times Spotted 27 | . 18 9 Peak Tracking Total 6 | . 5 6 Tactical Retreats 3 | . 3 . Traps | -11 -10 -9 ------- Run | Yrd Mat Mat Traps Triggered . | . . . Indirectly . | . . . Trap Hack Attempts . | . . . Triggered . | . . . Disarmed . | . . . Reprogrammed . | . . . Reused . | . . . Traps Extracted . | . . . Installed . | . . . Triggered . | . . . Machines | -11 -10 -9 ---------- Run | Yrd Mat Mat Machines Disabled . | . . . Max in Single Turn . | . . . Machines Repaired . | . . . Machines Dismantled . | . . . Machines Sabotaged . | . . . Overloaded Fab Kills . | . . . Hacking | -11 -10 -9 --------- Run | Yrd Mat Mat Machines Accessed 6 | . 6 . Terminals 5 | . 5 . Fabricators . | . . . Repair Stations . | . . . Recycling Units 1 | . 1 . Scanalyzers . | . . . Garrison Access . | . . . Total Hacks 14 | . 14 . Successful 10 | . 10 . Failed 4 | . 4 . Catastrophic 1 | . 1 . Database Lockouts . | . . . Manual . | . . . Terminals 12 | . 12 . Fabricators . | . . . Repair Stations . | . . . Recycling Units 2 | . 2 . Scanalyzers . | . . . Garrison Access . | . . . Terminal Hacks 8 | . 8 . Record 6 | . 6 . Robot Analysis 1 | . 1 . Locate Traps 1 | . 1 . Fabricator Hacks . | . . . Repair Station Hacks . | . . . Recycling Unit Hacks 2 | . 2 . Report Inventory 1 | . 1 . Retrieve Components 1 | . 1 . Scanalyzer . | . . . Garrison Access Hacks . | . . . Unauthorized Hacks . | . . . Terminals . | . . . Fabricators . | . . . Repair Stations . | . . . Recycling Units . | . . . Scanalyzers . | . . . Garrison Access . | . . . Data Cores Recovered . | . . . Used . | . . . Hacking Detections 3 | . 3 . Full Trace Events 2 | . 2 . Feedback Events . | . . . Feedback Blocked . | . . . Robot Schematics Acquired . | . . . Robots Built . | . . . Authchips . | . . . Time . | . . . Total Robot Build Rating . | . . . Part Schematics Acquired . | . . . Parts Built . | . . . Authchips . | . . . Time . | . . . Total Part Build Rating . | . . . Part Studies Acquired . | . . . Parts Repaired . | . . . Time . | . . . Parts Recycled . | . . . Recycled Matter . | . . . Retrieved Matter . | . . . Retrieved Components 1 | . 1 . Parts Scanalyzed . | . . . Part Schematics Acquired . | . . . Parts Damaged . | . . . Bothacking | -11 -10 -9 ------------ Run | Yrd Mat Mat Used RIF Installer . | . . . Robots Hacked . | . . . Non-combat . | . . . Combat . | . . . Robot Hacks Applied . | . . . Relay Couplers Released . | . . . Fabnet Peak Effective % . | . . . Robots Rewired . | . . . Allies Hacked . | . . . Hacks Repelled . | . . . Allies | -11 -10 -9 -------- Run | Yrd Mat Mat Total Allies . | . . . Largest Group . | . . . Highest-Rated Group . | . . . Highest-Rated Ally . | . . . Total Orders . | . . . Ally Attacks . | . . . Total Damage . | . . . Kills . | . . . Allies Corrupted . | . . . Allies Melted . | . . . Intel | -11 -10 -9 ------- Run | Yrd Mat Mat Active Infowar (turns) 498 | . 400 98 Optics 498 | . 400 98 Robot Analysis Total 1 | . 1 . Derelict Logs Recovered . | . . . Drone Launches . | . . . Drone Recoveries . | . . . Exploration | -11 -10 -9 ------------- Run | Yrd Mat Mat Turns Passed 1405 | 60 1146 199 Spaces Moved 627 | 43 520 64 Core 10 | 10 . . Treads . | . . . Legs 617 | 33 520 64 Wheels . | . . . Hover . | . . . Flight . | . . . Fastest Speed 50 | 50 120 190 Average Speed 176 | 108 177 211 Slowest Speed 260 | 120 260 260 Overloaded Moves . | . . . Propulsion Burnouts . | . . . Robots Hopped . | . . . Potential Cave-ins . | . . . Cave-ins Triggered . | . . . Exploration Rate (%) 25 | 3 66 7 Regions Visited 2 Branch Regions . Pre-discovered Areas . | . . . Known Exits Taken 1 | . 1 . Unknown Exits Taken 1 | 1 . . Scrap Searched . | . . . Spaces Dug . | . . . Terrain Destroyed . | . . . Melee . | . . . Projectile . | . . . AOE . | . . . Terrain Rammed . | . . . Walls Destroyed . | . . . Machines Disabled . | . . . Actions | -11 -10 -9 --------- Run | Yrd Mat Mat Total 828 | 56 678 94 Wait 97 | . 97 . Move 625 | 42 519 64 Hop . | . . . Pick Up 25 | 8 13 4 Fast Attach . | . . . Attach 11 | 6 2 3 Detach . | . . . Swap 12 | . 8 4 Drop 5 | . 5 . Fire 48 | . 34 14 Melee 5 | . . 5 Ram . | . . . Kick . | . . . Crush . | . . . Escape Stasis . | . . . Rewire . | . . . Trap . | . . . Miscellaneous . | . . . Route ------- -11/Scrapyard -10/Materials (discovered 3 exits: *Mat x3) -9/Materials History --------- Turn | Location | Event 12 | -11/Scrapyard | Discovered new exit (range 15) 61 | -11/Scrapyard | Entered Materials 226 | -10/Materials | Discovered new exit (range 5) 300 | -10/Materials | Build established: Mutant 457 | -10/Materials | Identified exit to Materials 598 | -10/Materials | Discovered exit to Materials (range 15) 1035 | -10/Materials | Discovered exit to Materials (range 5) 1207 | -10/Materials | Entered another Materials area 1207 | -9/Materials | Evolved 2 slots: Power x1, Propulsion x1 1406 | -9/Materials | Self-destructed Last Messages --------------- 01380_ K-01 Serf collects debris. 01383_ G-34 Mercenary destroyed. 01383_ K-01 Serf collects debris. 01386_ Acquired 10 matter. 01387_ K-01 Serf collects debris. 01390_ G-34 Mercenary suffers critical hit (Smash). 01390_ Destroyed Ion Engine. 01390_ Destroyed Heat Sink. 01390_ G-34 Mercenary system corrupted by crushing effect. 01390_ G-34 Mercenary knocked back. 01391_ G-34 Mercenary system terminally corrupted. 01391_ Aluminum Leg fried. 01391_ U-05 Engineer lays Concrete. 01395_ K-01 Serf collects debris. 01397_ U-05 Engineer lays Concrete. 01398_ K-01 Serf collects debris. 01405_ K-01 Serf destroyed. Map ----- +----------------------------------------------------+ | ??????????????????????????????????????? | | ??????????????????????????????????????? | | ??????????????????????????????????????? | | ??????????????????????????????????????? | | ??????????????????????????????????????? | | ??????????????????????????????????????? | | ??????????????????????????????????????? | | ??????????????????????????????????????? | | ??????????????????????????????????????? | | ??????????????????????????????????????? | | ???????????? ???????????????????????? | | ???????????# ???????????????????????? | | ???????????# ???????????????????????? | | ???????????+ ???????????????????????? | | ???????????# ???????????????????????? | | ???????????# ???????????????????????? | | ???????????# w???????????????????????? | | ???????????# ####???????????????????? | | ???????????# !????????????????????? | | ???????????# ????????????????????? | | ???????????# ?????????????????????? | | ??#######??# ?????????????????????? | | ?# ??# ??????????????????????? | | ?# ?# ??????????????????????? | | ?# ?# #????#####?????????????? | | ??# # @#?? ??????????????? | | ?????# # # """ "???????????????? | | ??????# + """ "???????????????? | | ??????### # !=# """ "???????????????? | | ????????##?# %%#?? ??????????????? | | ???????##### *%##############?????????? | | ???????# ???????? | | ???????# =%% ???????? | | ???????# ???????? | | ???????######Y###############?????????? | | ?????????# = #???????????????????? | | ?????????# % #???????????????????? | | ?????????# #???????????????????? | | ?????????# #???????????????????? | | ?????????# #???????????????????? | | ?????????# #???????????????????? | | ?????????# % #???????????????????? | | ?????????# #???????????????????? | | ?????????# % #???????????????????? | | ?????????######/##########????????????? | | ???????????# " #????????????? | | ???????????# #????????????? | | ???????????# """ """ """ #????????????? | | ???????????# """ """ """ #????????????? | | ???????????# """ """ """ #????????????? | +----------------------------------------------------+ Best States ------------- Heat Dissipation 28 Energy Generation 15 Energy Capacity 275 Matter Stores 300 Matter Capacity 300 Sight Range 18 Terrain Scan Density 10 Resistance: KI 20 Resistance: TH 20 Resistance: EX 20 Resistance: EM 20 Resistance: I 20 Resistance: S 20 Resistance: P 20 Propulsion Shielding 33 Evasion (%) 55 Melee Accuracy 5 Offensive Hacking 10 Item Schematics ----------------- None Robot Schematics ------------------ None Fabricated ------------ Nothing Repaired ---------- Nothing Studied --------- None Alien Tech Used ----------------- None Achievements -------------- Spot Them First Challenges ------------ None Game ------ Seed DisassembledTrackerWartreads Manual? 0 Play Time 00:12:57 Cumulative 26.6 hours Start 2026.07.01 @ 12:49:56 End 2026.07.01 @ 19:17:03 Sessions 2 Manual Loads 0 Difficulty Adventurer Special Mode None Game No. 40 Rogue 0 Adventurer 40 Explorer 0 Win Type - Total 0 Types 0/0/0/0/0/0/0/0/0/0 Lore% 11 Gallery% 16 Achievement% 12 Wizard Run 0 Options --------- Layout 1 ASCII 0 Keyboard 0 Movement Mouse Keybinds 0 Fullscreen 1 Font 24/Smallcaps Map View 50x35 Zoom Use 0% Tactical HUD 1 Map Filters NONE Filters NONE Steam 1 RUN: c313f144-33cd-434c-9b93-840aaf06ebfd